[Event "45th FIDE Olympiad 2024"]
[Site "Budapest"]
[Date "2024.09.14"]
[Round "4.30"]
[White "Anton Guijarro, David"]
[Black "Blomqvist, Erik"]
[Result "1-0"]
[ECO "C54"]
[WhiteElo "2665"]
[BlackElo "2491"]
[Annotator "TA"]
[PlyCount "75"]
[EventDate "2024.09.05"]
[EventType "team-tourn"]
[EventCountry "HUN"]
[SourceTitle "playchess.com"]
[Source "ChessBase"]
[SourceQuality "1"]
[WhiteTeam "Spain"]
[BlackTeam "Sweden"]
[WhiteTeamCountry "ESP"]
[BlackTeamCountry "SWE"]
[TimeControl "40/5400+30:1800+30"]

{[%evp 9,75,23,32,28,34,0,19,24,29,17,19,33,41,18,26,5,14,0,0,0,0,0,0,0,0,-61,-50,-51,-55,-56,-30,-29,-44,-44,-38,-45,-43,-44,-47,-35,-31,-70,-68,-118,0,0,0,0,0,0,0,0,64,58,90,84,308,291,441,438,483,483,441,415,681,681,1366,1141]} 1. e4 {[%emt 0:00:06]} e5 {[%emt 0:00:08]} 2. Nf3 {[%emt 0:00:07]} Nc6 {[%emt 0:00:08]} 3. Bc4 {[%emt 0:00:23]} Nf6 {[%emt 0:00:14]} 4. d3 {[%emt 0:00:17]} Bc5 {[%emt 0:00:21]} 5. c3 {[%emt 0:01:01]} a5 {[%emt 0:04:03]} 6. Bg5 {[%emt 0:02:27][%cal Bc1g5,Bg5h4,Bh4g3][%mdl 32]} d6 {[%emt 0:06:47]} 7. Nbd2 {[%emt 0:05:08]} h6 {[%emt 0:00:34]} 8. Bh4 {[%emt 0:00:09] The position is equal.} Ba7 {[%emt 0:03:16]} 9. a4 {[%emt 0:09:57]} g5 {[%emt 0:03:06][%cal Bg7g5,Bg5g4][%mdl 32]} 10. Bg3 {[%emt 0:00:13]} O-O {[%emt 0:00:15]} 11. h4 {[%emt 0:14:14]} g4 {[%emt 0:04:53]} 12. Nh2 {[%emt 0:00:08][%cal Oh4h5]} Kg7 {[%emt 0:02:02]} 13. Qe2 {[%emt 0:02:10]} Ne7 {[%emt 0:07:19][%cal Bc6e7,Be7g8,Bg8f6][%mdl 32]} 14. h5 {[%emt 0:07:34] Dodges Ng6} Nxh5 {[%emt 0:00:19]} 15. Nxg4 {[%emt 0:00:09]} Nxg3 {[%emt 0:00:20]} 16. fxg3 {[%emt 0:00:41]} Ng8 {[%emt 0:02:25]} 17. Rh5 {[%emt 0:04:32] Dodges Qg5} (17. Rh4 $11) 17... Nf6 $1 $15 {[%emt 0:02:27]} 18. Nxf6 {[%emt 0:04:38]} (18. Nxh6 $2 Nxh5 19. Qxh5 Qf6 20. Nf5+ Bxf5 21. exf5 Rh8 22. Qg4+ Kf8 $17) 18... Qxf6 {[%emt 0:00:28]} 19. O-O-O {[%emt 0:15:16]} Qg6 {[%emt 0:19:46]} (19... Qf2 {feels hotter.} 20. Qf3 Be3 21. Kc2 Bd7) 20. Rh4 {[%emt 0:03:12] Wards off Bg4} Qxg3 {[%emt 0:08:16]} 21. Rdh1 {[%emt 0:00:09]} Be3 {[%emt 0:03:53]} 22. Kb1 {[%emt 0:05:07] [#] Nf1 would now be deadly. White is weak on the dark squares} Bg5 {[%emt 0:03:27]} 23. Nf1 {[%emt 0:00:56]} Qxh4 {[%emt 0:00:17]} 24. Rxh4 {[%emt 0:00:05]} Bxh4 {[%emt 0:00:06]} 25. Qh5 {[%emt 0:01:08]} Bg5 {[%emt 0:00:50]} 26. Nh2 {[%emt 0:00:33]} (26. d4 $15) 26... Be6 {[%emt 0:16:45]} ({Better is} 26... Bd7 $17) 27. Nf3 $36 {[%emt 0:03:39][%mdl 2048] White has some pressure.} Bxc4 {[%emt 0:01:49]} 28. dxc4 {[%emt 0:00:07]} Kf6 {[%emt 0:06:26]} 29. c5 $1 {[%emt 0:01:34]} Ke7 {[%emt 0:02:21]} 30. Qh1 {[%emt 0:03:23]} (30. cxd6+ $6 Kxd6 31. Nxg5 hxg5 $16) 30... dxc5 {[%emt 0:01:33]} (30... Rg8 $6 31. Qf1 $16 (31. cxd6+ cxd6 32. Qg1 Rgd8 $17)) ({Black should try} 30... f6 $11) 31. Nxe5 $14 {[%emt 0:00:29]} Ra6 {[%emt 0:00:29] [#]} 32. Qg1 $1 {[%emt 0:01:30] White is more active.} Rd6 $2 {[%emt 0:00:55] A mistake that costs the game.} (32... Re8 $16) 33. Qxc5 $18 {[%emt 0:00:23]} Ke6 {[%emt 0:00:21]} (33... Kf6 {might work better.} 34. Nc4 (34. Qxc7 Kxe5 35. Qc5+ Ke6 $17) (34. Qxa5 b6 $18) (34. Nd7+ Rxd7 35. Qxf8 b6 $18) 34... Rd1+ 35. Kc2 (35. Ka2 Kg7 $18) 35... Rc1+ 36. Kb3 Re8 37. e5+ (37. Nxa5 b6 $18) (37. Qxa5 b6 $18) 37... Kg7 38. Qxc7 (38. Nxa5 Re7 $18) 38... Rf1 39. Qxb7 (39. Nxa5 Re7 $18) 39... Re1) 34. Nc4 {[%emt 0:02:06]} (34. Qxa5 Kf6 35. Nf3 (35. Qxc7 Kxe5 36. Qc5+ Ke6 $11) 35... Ra6 36. Qe5+ (36. Qxc7 Rxa4 37. Qe5+ Kg6 $18) 36... Kg6 $18) (34. Qxc7 Kxe5 35. Qc5+ Ke6 (35... Kxe4 $2 36. Qxd6 Rd8 37. Qc7 $18) 36. Qf5+ Ke7 37. Qe5+ Kd7 38. Qb5+ Kd8 39. Qxb7 (39. Qxa5+ $2 b6 $19) 39... Re8 $19) 34... Rd1+ {[%emt 0:00:03]} 35. Kc2 {[%emt 0:00:39]} (35. Ka2 Re8 36. Qxc7 (36. Nxa5 Kf6 $18) 36... Kf6 37. e5+ (37. Qxa5 Rxe4 38. Qb6+ Kg7 $18) (37. Qxb7 Kg7 $18) 37... Kg6 38. Qxb7 (38. Qxa5 Re7 $18) 38... Re1 39. Qc6+ (39. Nxa5 R8xe5 40. Nc4 Re7 $18) 39... Re6) 35... Rc1+ {[%emt 0:00:50]} 36. Kb3 {[%emt 0:00:04]} Rg8 {[%emt 0:00:31]} (36... Re8 $142 37. Qxc7 Kf6 38. e5+ (38. Qxb7 Re6 $18) (38. Nxa5 Rxe4 39. Nxb7 Re7 $18) 38... Kg6 39. Qxb7 (39. Nxa5 Re7 $18) 39... Ra1 40. Qc6+ (40. Nxa5 Rxe5 41. Qb4 Re6 $18) 40... Re6 41. Qe4+ f5) 37. Qxc7 {[%emt 0:00:55]} Be7 {[%emt 0:00:46] Repels Qd6+} 38. Qf4 {[%emt 0:00:49] Weighted Error Value: White=0.09 (flawless) /Black=0.40.  Loses game:     	---       	Black=1      Mistake:       	White=2     	Black=4      Inaccurate:     	White=1     	Black=3      OK:         	White=15    	Black=11     Best:        	White=4     	Black=4      Strong:       	White=2     	Black=1} 1-0

[Event "45th FIDE Olympiad 2024"]
[Site "Budapest"]
[Date "2024.09.14"]
[Round "4.30"]
[White "Lam Kin Cheung, Stephane"]
[Black "Alhassadi, Yousef A."]
[Result "0-1"]
[ECO "B23"]
[WhiteElo "1677"]
[BlackElo "2082"]
[PlyCount "50"]
[EventDate "2024.09.05"]
[EventType "team-tourn"]
[EventCountry "HUN"]
[WhiteTeam "Mauritius"]
[BlackTeam "Libya"]
[WhiteTeamCountry "MRI"]
[BlackTeamCountry "LBY"]
[TimeControl "40/5400+30:1800+30"]

1. e4 c5 2. Nc3 e6 3. f4 d5 4. Nf3 d4 5. Bb5+ Bd7 6. Bxd7+ Qxd7 7. Nb1 Nc6 8. d3 f5 9. e5 Nge7 10. O-O Nd5 11. b3 Be7 12. a4 h6 13. h4 O-O-O 14. Na3 Qe8 15. Bd2 Qg6 16. Qe1 Qg4 17. g3 Rdg8 18. Kg2 g5 19. fxg5 hxg5 20. Nxg5 Bxg5 21. Bxg5 Rxg5 22. hxg5 Ne3+ 23. Kg1 Rh1+ 24. Kxh1 Qh3+ 25. Kg1 Qg2# {0-} 0-1

[Event "45th FIDE Olympiad 2024"]
[Site "Budapest"]
[Date "2024.09.14"]
[Round "4.31"]
[White "Hillarp Persson, Tiger"]
[Black "Pichot, Alan"]
[Result "0-1"]
[ECO "A05"]
[WhiteElo "2457"]
[BlackElo "2628"]
[Annotator "TA"]
[PlyCount "86"]
[EventDate "2024.09.05"]
[EventType "team-tourn"]
[EventCountry "HUN"]
[SourceTitle "playchess.com"]
[Source "ChessBase"]
[SourceQuality "1"]
[WhiteTeam "Sweden"]
[BlackTeam "Spain"]
[WhiteTeamCountry "SWE"]
[BlackTeamCountry "ESP"]
[TimeControl "40/5400+30:1800+30"]

{[%evp 18,86,7,0,16,13,27,20,13,0,0,0,14,7,5,17,24,0,8,0,0,0,0,0,20,20,14,0,0,0,0,0,0,0,34,36,31,0,33,29,32,0,2,12,14,3,7,0,458,451,611,591,607,571,604,618,1306,607,543,445,648,430,430,-570,-558,-550,-542,-978,-970,-1066,-1041]} 1. Nf3 {[%emt 0:00:03]} Nf6 {[%emt 0:00:27]} 2. g3 {[%emt 0:00:26]} b5 {[%emt 0:00:19]} 3. Bg2 {[%emt 0:00:16]} Bb7 {[%emt 0:00:17]} 4. O-O {[%emt 0:00:12]} e6 {[%emt 0:00:13]} 5. d3 {[%emt 0:00:13]} c5 {[%emt 0:00:30]} 6. e4 {[%emt 0:11:01]} d6 {[%emt 0:00:13]} 7. a4 {[%emt 0:00:31]} b4 {[%emt 0:00:46] 7...b4 is better than 7...a6.} 8. a5 {[%emt 0:00:37] A05: Réti Opening: 1 Nf3 Nf6.} Be7 {[%emt 0:03:42]} 9. Nbd2 {[%emt 0:09:49]} O-O {[%emt 0:04:45]} 10. Re1 {[%emt 0:00:40]} Nbd7 {[%emt 0:11:47]} 11. Nc4 {[%emt 0:05:32]} a6 {[%emt 0:08:26]} 12. c3 $146 {[%emt 0:11:49]} ({Predecessor:} 12. e5 dxe5 13. Nfxe5 Bxg2 14. Kxg2 Nxe5 15. Nxe5 Qd5+ 16. Qf3 Rac8 17. Nc4 Qxf3+ 18. Kxf3 {½-½ Mortazavi,A (2333)-Indjic,A (2618) Titled Tuesday intern op 02nd May Late blitz 2023 (6)}) 12... d5 {[%emt 0:05:23]} 13. exd5 {[%emt 0:00:35]} Nxd5 {[%emt 0:06:44]} 14. Bd2 {[%emt 0:00:35]} Qc7 {[%emt 0:01:30]} 15. Rc1 {[%emt 0:13:25]} bxc3 {[%emt 0:03:54]} 16. bxc3 {[%emt 0:00:06]} Rad8 {[%emt 0:06:38]} 17. h4 {[%emt 0:20:44]} h6 {[%emt 0:04:58]} 18. Rb1 {[%emt 0:01:18]} Ba8 {[%emt 0:05:13]} 19. Nh2 {[%emt 0:06:19]} N7f6 {[%emt 0:06:46]} 20. Qe2 {[%emt 0:02:26]} Rfe8 {[%emt 0:04:10]} 21. Nf3 {[%emt 0:01:13]} Nd7 {[%emt 0:09:12]} 22. d4 {[%emt 0:03:14]} Bf8 {[%emt 0:06:45]} 23. Nfe5 {[%emt 0:02:14]} cxd4 {[%emt 0:02:44]} 24. cxd4 {[%emt 0:00:10]} Nxe5 {[%emt 0:00:10]} 25. dxe5 {[%emt 0:00:52]} Bc6 {[%emt 0:01:47]} 26. Rec1 {[%emt 0:01:56]} Bb5 {[%emt 0:00:39]} 27. Qe4 {[%emt 0:03:36]} (27. Rxb5 {is interesting.} axb5 28. Nd6 Bxd6 29. Rxc7 Bxc7 30. Qxb5 Bxe5 31. a6) 27... f5 {[%emt 0:01:19]} 28. exf6 {[%emt 0:01:41]} Nxf6 {[%emt 0:00:05]} 29. Bf4 {[%emt 0:00:36]} (29. Qe1 $5 Bc5 (29... Bxc4 30. Be3 $14) 30. Bf4 $14) 29... Qc5 {[%emt 0:02:42]} 30. Qe3 {[%emt 0:01:44]} Qf5 {[%emt 0:00:18]} 31. Qe5 {[%emt 0:01:16]} ({Much weaker is} 31. Ne5 Bd6 (31... Nd5 32. Qe4 $11) 32. h5 Nd5 (32... Nxh5 33. Be4 $11) (32... Qxh5 33. Bf3 $15)) 31... Nd5 {[%emt 0:02:11]} (31... Bc5 {simplifies} 32. Qxf5 exf5 33. Be3 Bxe3 34. Nxe3 Re5) 32. Bd2 {[%emt 0:00:36]} (32. Qxf5 {simplifies} exf5 33. Bd6 Bxd6 34. Bxd5+ Kf8 35. Nxd6 Rxd6 36. Bf3) 32... Qd3 $2 {[%emt 0:01:16][%mdl 8192]} (32... Qg4 $11 {and Black is okay.} 33. Bf1 Bc5) 33. Be4 $18 {[%emt 0:00:35]} Bxc4 {[%emt 0:00:35]} ({Avoid the trap} 33... Qe2 $2 34. Bh7+ Kxh7 35. Qxe2) 34. Bxd3 {[%emt 0:00:10]} Bxd3 {[%emt 0:00:02]} 35. Rb7 {[%emt 0:00:22]} Nf6 {[%emt 0:00:10]} 36. Bxh6 {[%emt 0:00:42]} Be4 {[%emt 0:00:49]} 37. Ra7 {[%emt 0:00:41]} Rd5 {[%emt 0:00:09]} 38. Qf4 {[%emt 0:00:32]} Red8 {[%emt 0:00:33]} (38... Rf5 $142 39. Qc7 gxh6) 39. Re1 {[%emt 0:00:38]} Rd1 {[%emt 0:00:31]} 40. Kf1 $4 {[%emt 0:00:30][%mdl 8192]} (40. Rf1 $1 $18 {was the only winning move.}) 40... Bd3+ $19 {[%emt 0:01:13]} 41. Kg2 {[%emt 0:01:35]} Rxe1 {[%emt 0:01:10]} 42. Bg5 {[%emt 0:03:00]} Be4+ {[%emt 0:05:38]} 43. f3 {[%emt 0:00:11]} Re2+ {[%emt 0:00:10]} 0-1

[Event "45th FIDE Olympiad 2024"]
[Site "Budapest"]
[Date "2024.09.14"]
[Round "4.31"]
[White "Naser Eldean, Ahmed"]
[Black "Lee Luen Mang, Stefan"]
[Result "1-0"]
[ECO "B30"]
[WhiteElo "1981"]
[BlackElo "1803"]
[PlyCount "141"]
[EventDate "2024.09.05"]
[EventType "team-tourn"]
[EventCountry "HUN"]
[WhiteTeam "Libya"]
[BlackTeam "Mauritius"]
[WhiteTeamCountry "LBY"]
[BlackTeamCountry "MRI"]
[TimeControl "40/5400+30:1800+30"]

1. e4 c5 2. Nf3 Nc6 3. Bb5 e6 4. Bxc6 bxc6 5. d3 Ne7 6. b3 Ng6 7. O-O Be7 8. Bb2 O-O 9. Nbd2 d6 10. Nc4 e5 11. Ne3 Nf4 12. g3 Ne6 13. h4 a5 14. Kg2 a4 15. Nd2 Nd4 16. Rh1 f5 17. c3 a3 18. Bxa3 Rxa3 19. cxd4 cxd4 20. Nxf5 Bxf5 21. exf5 Rxf5 22. Qc1 Qa8 23. Qc4+ Kh8 24. Qe6 Qf8 25. Rhf1 Ra8 26. a4 Rf6 27. Qd7 d5 28. Rae1 Bb4 29. Re2 Re8 30. Rc1 Bc3 31. Nb1 Re7 32. Qg4 Bb4 33. Rec2 c5 34. Rf1 Ref7 35. Qe2 Re7 36. Ra2 e4 37. a5 Ra6 38. dxe4 Qf6 39. Qg4 h6 40. exd5 Rf7 41. Kg1 d3 42. Qe4 Qf5 43. Qc4 Rff6 44. Nc3 Rxa5 45. Rxa5 Bxa5 46. Ne4 Rf8 47. Qxd3 Bb6 48. Qc4 Rd8 49. Rd1 Qg4 50. Nc3 Qf3 51. Qd3 Qf7 52. Ne4 Rd7 53. Kg2 Qf5 54. Nc3 Qf6 55. Qf3 Qg6 56. Qe4 Qf7 57. Qe6 Qxe6 58. dxe6 Rxd1 59. Nxd1 Kg8 60. Nc3 g6 61. Nd5 Ba5 62. Kf3 Be1 63. Ke2 Ba5 64. g4 Kg7 65. f4 Kf8 66. f5 gxf5 67. gxf5 Bd8 68. f6 Ba5 69. Kd3 h5 70. Kc4 Be1 71. e7+ 1-0

[Event "45th FIDE Olympiad 2024"]
[Site "Budapest"]
[Date "2024.09.14"]
[Round "4.32"]
[White "Santos Latasa, Jaime"]
[Black "Lokander, Martin"]
[Result "1-0"]
[ECO "C70"]
[WhiteElo "2624"]
[BlackElo "2469"]
[Annotator "TA"]
[PlyCount "67"]
[EventDate "2024.09.05"]
[EventType "team-tourn"]
[EventCountry "HUN"]
[SourceTitle "playchess.com"]
[Source "ChessBase"]
[SourceQuality "1"]
[WhiteTeam "Spain"]
[BlackTeam "Sweden"]
[WhiteTeamCountry "ESP"]
[BlackTeamCountry "SWE"]
[TimeControl "40/5400+30:1800+30"]

{[%evp 15,67,50,58,46,36,8,47,11,49,14,24,12,27,33,69,0,6,0,0,-4,54,52,36,48,83,79,77,87,84,62,202,163,161,160,177,190,188,140,180,167,130,120,235,244,711,658,1033,1002,973,932,29951,10504,29937,11841]} 1. e4 {[%emt 0:00:05]} e5 {[%emt 0:00:47]} 2. Nf3 {[%emt 0:00:05]} Nc6 {[%emt 0:00:05]} 3. Bb5 {[%emt 0:00:05]} a6 {[%emt 0:02:36]} 4. Ba4 {[%emt 0:01:48]} d6 {[%emt 0:00:08]} 5. O-O {[%emt 0:00:39]} b5 {[%emt 0:00:13]} 6. Bb3 {[%emt 0:00:19]} Na5 {[%emt 0:00:07]} 7. d4 {[%emt 0:01:54]} Nxb3 {[%emt 0:00:05]} 8. axb3 {[%emt 0:00:08]} f6 {[%emt 0:00:10]} 9. Re1 {[%emt 0:05:48]} Ne7 {[%emt 0:04:23]} 10. Bd2 {[%emt 0:03:03]} Rb8 {[%emt 0:02:19]} 11. dxe5 {[%emt 0:14:19] White is slightly better.} fxe5 {[%emt 0:10:07]} 12. c4 {[%emt 0:00:39]} Qd7 {[%emt 0:09:48]} 13. Nc3 {[%emt 0:01:22]} bxc4 {[%emt 0:04:38]} 14. bxc4 {[%emt 0:02:31]} Rxb2 {[%emt 0:00:23]} 15. Nd5 {[%emt 0:04:40]} (15. c5 $14) 15... Nxd5 $11 {[%emt 0:01:57]} 16. exd5 {[%emt 0:02:31][%cal Of3e5]} Be7 {[%emt 0:09:40]} 17. Bc3 $36 {[%emt 0:01:09][%mdl 2048] White fights for an advantage.} Rb8 {[%emt 0:07:10] [#]} (17... Rb6 $1 $11) 18. Bxe5 $1 $14 {[%emt 0:03:18]} O-O {[%emt 0:00:46]} (18... dxe5 $2 {loses.} 19. Nxe5 Qd6 20. Nc6 $18) 19. Bc3 {[%emt 0:04:35]} Bf6 {[%emt 0:06:35]} 20. Bxf6 {[%emt 0:01:05]} Rxf6 {[%emt 0:00:21]} 21. Nd4 {[%emt 0:10:39]} Rb2 {[%emt 0:02:19]} 22. f3 {[%emt 0:00:53] Hoping for Nc6.} h6 {[%emt 0:04:37]} (22... Rg6 $14 23. Re2 Rxe2 24. Qxe2 Rf6) 23. Qc1 {[%emt 0:01:14]} Rb6 {[%emt 0:01:33]} 24. Ra2 {[%emt 0:01:54] Rae2 would now be deadly.} Qf7 {[%emt 0:04:37]} 25. Rae2 {[%emt 0:01:16]} Bf5 {[%emt 0:00:13]} 26. Qc3 {[%emt 0:05:23]} Rb1 {[%emt 0:03:39]} 27. Rxb1 {[%emt 0:00:46]} Bxb1 {[%emt 0:00:04]} 28. Qe1 {[%emt 0:03:09] White is more active.} Bf5 {[%emt 0:07:44]} (28... Qg6 $16 {might work better.}) 29. g4 $18 {[%emt 0:06:19]} Qg6 {[%emt 0:04:34] [#]} (29... Bg6) 30. Nc6 $1 {[%emt 0:01:05] And now Ne7+ would win.} ({Weaker is} 30. Re8+ Kh7 $16) 30... Kh7 {[%emt 0:03:52]} 31. Ne7 {[%emt 0:00:18]} Qg5 {[%emt 0:00:13]} 32. Nxf5 {[%emt 0:02:24] Threatens to win with h4.} Rxf5 {[%emt 0:00:15] [#]} 33. Qb1 $1 {[%emt 0:00:04] White wants to mate with h4.} g6 {[%emt 0:00:28] [#]} 34. h4 $1 {[%emt 0:00:04][%mdl 512] Weighted Error Value: White=0.14 (very precise) /Black=0.65.  Mistake:       	White=1     	Black=4      Inaccurate:     	White=3     	Black=5      OK:         	White=6     	Black=4      Best:        	---       	Black=3      Strong:       	White=1     	---        Brilliant:      	White=1     	---} 1-0

[Event "45th FIDE Olympiad 2024"]
[Site "Budapest"]
[Date "2024.09.14"]
[Round "4.32"]
[White "Naipal, Hoolan"]
[Black "Abugenda, Nagi"]
[Result "0-1"]
[ECO "C41"]
[WhiteElo "1851"]
[BlackElo "1975"]
[PlyCount "50"]
[EventDate "2024.09.05"]
[EventType "team-tourn"]
[EventCountry "HUN"]
[WhiteTeam "Mauritius"]
[BlackTeam "Libya"]
[WhiteTeamCountry "MRI"]
[BlackTeamCountry "LBY"]
[TimeControl "40/5400+30:1800+30"]

1. e4 d6 2. d4 Nf6 3. Nc3 Nbd7 4. Nf3 e5 5. Bc4 Be7 6. h3 O-O 7. Be3 c6 8. a4 Qc7 9. a5 Re8 10. O-O h6 11. Qd2 Bf8 12. Rfe1 exd4 13. Bxd4 Ne5 14. Nxe5 dxe5 15. Be3 Be6 16. Qe2 Bb4 17. Bd2 Bxa5 18. Bxe6 Rxe6 19. Nb5 cxb5 20. Bxa5 b6 21. Bc3 Qc6 22. Ra3 a5 23. Rb3 b4 24. Bd2 Qxc2 25. Rg3 Ne8 {0-} 0-1

[Event "45th FIDE Olympiad 2024"]
[Site "Budapest"]
[Date "2024.09.14"]
[Round "4.33"]
[White "Carlsen, Magnus"]
[Black "Gazik, Viktor"]
[Result "1-0"]
[ECO "E14"]
[WhiteElo "2832"]
[BlackElo "2561"]
[Annotator "TA"]
[PlyCount "55"]
[EventDate "2024.09.05"]
[EventType "team-tourn"]
[EventCountry "HUN"]
[SourceTitle "playchess.com"]
[Source "ChessBase"]
[SourceQuality "1"]
[WhiteTeam "Norway"]
[BlackTeam "Slovakia"]
[WhiteTeamCountry "NOR"]
[BlackTeamCountry "SVK"]
[TimeControl "40/5400+30:1800+30"]

{[%evp 16,55,30,51,47,39,35,58,59,51,45,60,68,74,76,75,104,87,134,143,95,147,120,123,115,109,205,120,165,153,154,149,165,165,185,167,418,320,416,391,1453,1388]} 1. d4 {[%emt 0:02:02]} Nf6 {[%emt 0:00:06]} 2. c4 {[%emt 0:00:08]} e6 {[%emt 0:00:06]} 3. Nf3 {[%emt 0:00:13]} Bb4+ {[%emt 0:00:06]} 4. Nbd2 {[%emt 0:00:17]} b6 {[%emt 0:00:25]} 5. a3 {[%emt 0:00:50]} Bxd2+ {[%emt 0:00:08]} 6. Nxd2 {[%emt 0:00:46]} Bb7 {[%emt 0:07:39]} 7. e3 {[%emt 0:01:10]} O-O {[%emt 0:18:21]} 8. Bd3 {[%emt 0:00:13]} d5 {[%emt 0:08:10]} 9. O-O {[%emt 0:00:49]} dxc4 {[%emt 0:09:08]} 10. Nxc4 {[%emt 0:02:07][%cal Bd2c4,Bc4b2,Bb2d3,Bd3c5][%mdl 32]} Qd5 {[%emt 0:02:18][%csl Gb7][%cal Rd5g2]} 11. f3 {[%emt 0:01:30]} Rd8 {[%emt 0:02:30] White is slightly better.} 12. Be2 {[%emt 0:07:40]} Nc6 {[%emt 0:05:56]} 13. Qc2 {[%emt 0:15:19]} Rac8 {[%emt 0:08:54]} 14. b3 {[%emt 0:14:33]} b5 {[%emt 0:13:06]} 15. Nb2 {[%emt 0:02:10]} e5 {[%emt 0:09:51]} 16. Nd3 {[%emt 0:12:49]} e4 {[%emt 0:04:52] [#]} (16... Nxd4 $2 17. exd4 Qxd4+ 18. Nf2 $18) (16... Qd6 $142) 17. Nc5 $1 $16 {[%emt 0:00:31]} Nxd4 {[%emt 0:03:29]} 18. exd4 {[%emt 0:00:02]} Qxd4+ {[%emt 0:00:11]} 19. Kh1 {[%emt 0:00:07][%cal Oc5b7]} exf3 {[%emt 0:00:39]} (19... Qxa1 $2 {is the wrong capture.} 20. Bb2 (20. Nxb7 Qe5 $18) 20... Qa2 21. Nxb7 $18 (21. Ra1 Qxa1+ 22. Bxa1 exf3 $18) (21. Ra1 Qxa1+ 22. Bxa1 exf3 $18)) 20. gxf3 {[%emt 0:01:23]} Ba8 {[%emt 0:00:05] [#]} (20... Bxf3+ $16 {was called for.} 21. Bxf3 Qxa1) 21. Bg5 {[%emt 0:11:06]} (21. Ra2 $1 $18) 21... Rd5 {[%emt 0:00:34]} 22. Bxf6 {[%emt 0:00:38]} Qxf6 {[%emt 0:00:12]} 23. Ne4 {[%emt 0:01:37]} ({Inferior is} 23. Bxb5 Qb6 24. Bd3 Rxc5 25. Bxh7+ Kf8 $17) 23... Qf4 {[%emt 0:01:14]} 24. Qc1 {[%emt 0:01:03]} Qh4 {[%emt 0:00:29]} 25. Rg1 {[%emt 0:01:21]} Re5 $2 {[%emt 0:00:45]} (25... g6 {keeps fighting.} 26. Qc3 Rf5) 26. Qc3 {[%emt 0:00:49]} Rce8 {[%emt 0:00:07]} 27. Bxb5 {[%emt 0:00:46]} (27. Qxc7 $2 {too greedy.} Rxe4 28. Bf1 Rg4 $19) 27... R8e7 {[%emt 0:03:18] [#]} (27... R8e6 28. Bc4 Re8) 28. Rad1 $1 {[%emt 0:00:36] Weighted Error Value: White=0.20 (precise) /Black=0.52.  Mistake:       	White=1     	Black=4      Inaccurate:     	---       	Black=2      OK:         	White=5     	Black=2      Best:        	White=4     	Black=2      Strong:       	White=1     	---} 1-0

[Event "45th FIDE Olympiad 2024"]
[Site "Budapest"]
[Date "2024.09.14"]
[Round "4.33"]
[White "Pg, Md Omar Ak Hafizon"]
[Black "Kumar, Manoj"]
[Result "1/2-1/2"]
[ECO "C54"]
[WhiteElo "2159"]
[BlackElo "1951"]
[PlyCount "95"]
[EventDate "2024.09.05"]
[EventType "team-tourn"]
[EventCountry "HUN"]
[WhiteTeam "Brunei Darussalam"]
[BlackTeam "Fiji"]
[WhiteTeamCountry "BRN"]
[BlackTeamCountry "FIJ"]
[TimeControl "40/5400+30:1800+30"]

1. e4 e5 2. Nf3 Nc6 3. Bc4 Bc5 4. d3 Nf6 5. Bb3 d6 6. c3 Bb6 7. O-O h6 8. Be3 O-O 9. Nbd2 Ng4 10. Bxb6 axb6 11. h3 Nf6 12. d4 Re8 13. Re1 Bd7 14. a3 Nh7 15. Nf1 Ng5 16. Nxg5 Qxg5 17. Re3 exd4 18. cxd4 Qh4 19. Ng3 Ne7 20. Rc1 c6 21. Rf3 Rf8 22. Ne2 Qxe4 23. Bc2 Qh4 24. Qd3 f5 25. Qb3+ Kh8 26. Nf4 Qf6 27. Re1 Nc8 28. h4 d5 29. h5 Kh7 30. Ng6 Rd8 31. Ne5 Nd6 32. Rg3 Be8 33. Qxb6 Bxh5 34. Qb4 Rab8 35. Rh3 Bg6 36. Ree3 Ne4 37. f3 Nd6 38. Qe1 Be8 39. Bb1 Kg8 40. a4 Ra8 41. b3 Rab8 42. f4 Ne4 43. b4 Ra8 44. Bc2 Rdc8 45. Bb3 Kh7 46. Bc2 Kg8 47. Bb3 Kh7 48. Bc2 1/2-1/2